bitfinex-derivatives/quotes_ETHF0:USTF0_20250709
["timestamp","ask_amount","ask_price","bid_price","bid_amount"]
[1752049979503,0.76734137,2625.6,2625.5,3.75064]
[1752049979702,0.76734137,2625.6,2625.5,2.989]
[1752049980103,0.00572137,2625.6,2625.5,3.75064]
[1752049980309,0.76734137,2625.6,2625.5,2.989]
[1752049980804,0.00572137,2625.6,2625.5,3.75064]
[1752049981006,0.76734137,2625.6,2625.5,2.989]
[1752049981309,0.76734137,2625.6,2625.5,1.6727]
[1752049981810,0.76734137,2625.6,2625.5,2.43434]
[1752049981999,0.76734137,2625.6,2625.5,3.81434]
[1752049982404,0.76734137,2625.6,2625.5,3.0527]
[1752049983210,0.76734137,2625.6,2625.4,3.2078]
[1752049983211,0.76164,2625.5,2625.4,3.2078]
[1752049984413,0.76164,2625.5,2625.4,3.8988]
[1752049984714,0.7617,2625.3,2625.2,0.00572137]
[1752049984908,2.03950511,2625.3,2625.2,0.00572137]
[1752049985213,3.47756821,2625.3,2625.2,0.00572137]
[1752049985413,4.23316821,2625.3,2625.2,0.00572137]
[1752049985602,2.9553631,2625.3,2625.2,0.00572137]
[1752049987015,2.9553631,2625.3,2625.2,0.69672137]
[1752049988509,2.9553631,2625.3,2625.2,1.68392137]
[1752049990315,2.9553631,2625.3,2625.2,0.69672137]
[1752049990511,2.9553631,2625.3,2625.2,1.68392137]
[1752049991015,2.9553631,2625.3,2625.2,0.69672137]
[1752049991712,2.9553631,2625.3,2625.2,0.00572137]
[1752049992514,2.9553631,2625.3,2625.2,1.64652137]
[1752049996413,2.1997631,2625.3,2625.2,1.64652137]
[1752049997919,2.1997631,2625.3,2625.2,0.65932137]
[1752049998116,2.1997631,2625.3,2625.2,1.64652137]
[1752050002622,3.47756821,2625.3,2625.2,0.00572137]
[1752050003018,0.76179,2625.0,2624.9,0.9872]
[1752050003222,2.1998531,2625.0,2624.9,1.6408]
[1752050004325,0.76185,2624.8,2624.7,1.2987]
[1752050004623,3.47771821,2624.8,2624.7,1.9523]
[1752050004821,2.1999131,2624.8,2624.7,2.9395]
[1752050007627,2.1999131,2624.8,2624.7,1.9523]
[1752050008525,0.76188,2624.7,2624.6,0.7215]
[1752050008823,2.9425431,2624.7,2624.6,1.3751]
[1752050009927,2.9425431,2624.7,2624.6,0.6536]
[1752050011119,2.1999431,2624.7,2624.6,0.6536]
[1752050011323,2.1999431,2624.7,2624.6,1.6408]
[1752050019734,2.1999431,2624.7,2624.6,2.9849]
[1752050026732,1.4380631,2624.7,2624.6,4.26270511]
[1752050026929,2.1999431,2624.7,2624.6,4.26270511]
[1752050028928,1.4380631,2624.7,2624.6,5.02461511]
[1752050029337,1.44761124,2624.9,2624.7,0.76188]
[1752050029538,0.76182,2624.9,2624.8,2.3303]
[1752050029738,2.20943145,2624.9,2624.8,2.9713]
[1752050031139,2.20943145,2624.9,2624.8,3.7358]
[1752050031338,1.44761145,2624.9,2624.8,5.77545511]
[1752050032738,2.21024968,2624.9,2624.8,3.7358]
[1752050038943,2.21024968,2624.9,2624.8,4.49765]
[1752050040244,2.21024968,2624.9,2624.8,3.7358]
[1752050042446,0.76194,2624.5,2624.4,0.994]
[1752050042647,0.76194,2624.5,2624.4,1.635]
[1752050042948,2.20638232,2624.5,2624.4,2.9451]
[1752050048151,2.20638232,2624.5,2624.4,3.70706]
[1752050051052,2.20638232,2624.5,2624.4,2.9451]
[1752050051352,2.20638232,2624.5,2624.4,3.70706]
[1752050051956,0.76194,2624.5,2624.4,3.70706]
[1752050052350,0.76193,2624.6,2624.5,0.76191]
[1752050052551,0.76193,2624.6,2624.5,2.71661]
[1752050052753,2.20678405,2624.6,2624.5,3.66281]
[1752050054252,1.44485405,2624.6,2624.5,4.94061511]
[1752050054453,0.76191,2624.6,2624.5,4.17870511]
[1752050054649,0.76191,2624.6,2624.5,4.94064511]
[1752050055459,0.76191,2624.6,2624.5,4.17870511]
[1752050055654,2.2070115,2624.6,2624.5,2.9009]
[1752050055856,0.76196,2624.4,2624.3,0.719]
[1752050056159,0.76196,2624.4,2624.3,0.6306]
[1752050056858,2.03976511,2624.4,2624.3,0.6306]
[1752050057059,0.76196,2624.4,2624.3,0.6306]
[1752050057261,2.20618712,2624.4,2624.3,1.5768]
[1752050057557,0.76195,2624.5,2624.3,3.60999]
[1752050057757,0.76194,2624.5,2624.4,1.2712]
[1752050057957,2.20628264,2624.5,2624.4,2.848]
[1752050058465,2.2060622,2624.5,2624.4,3.60996]
[1752050060261,2.2060622,2624.5,2624.4,2.848]
[1752050061363,0.76194,2624.5,2624.4,2.848]
[1752050062362,0.76194,2624.5,2624.4,6.0558]
[1752050062564,0.76194,2624.5,2624.4,6.81776]
[1752050062961,0.7495,2624.9,2624.5,0.76192]
[1752050063156,0.76188,2624.7,2624.6,2.3223]
[1752050063361,2.20599894,2624.7,2624.6,2.9529]
[1752050067764,1.44411894,2624.7,2624.6,3.71481]
[1752050068066,2.20599894,2624.7,2624.6,2.9529]
[1752050069474,2.20599894,2624.7,2624.6,3.71481]
[1752050069674,2.20599894,2624.7,2624.6,2.9529]
[1752050070475,0.76188,2624.7,2624.6,2.9529]
[1752050070676,2.20103176,2624.7,2624.6,2.9529]
[1752050075677,2.20103176,2624.7,2624.6,3.71481]
[1752050075875,1.43915176,2624.7,2624.6,4.99261511]
[1752050076880,0.76186,2624.8,2624.7,0.76185]
[1752050077082,0.76186,2624.8,2624.7,4.45585]
[1752050077281,2.20246044,2624.8,2624.7,4.45585]
[1752050078179,2.20246044,2624.8,2624.7,3.694]
[1752050078483,1.44060044,2624.8,2624.7,4.45588]
[1752050078782,2.20245044,2624.8,2624.7,4.45588]
[1752050078974,0.76185,2624.8,2624.7,4.45588]
[1752050079371,2.20167572,2624.8,2624.7,4.45588]
[1752050080283,0.76185,2624.8,2624.7,4.45588]
[1752050082082,0.76185,2624.8,2624.7,3.694]
[1752050082278,0.76185,2624.8,2624.7,7.66368]
[1752050082478,0.76185,2624.8,2624.7,6.9018]
[1752050082678,0.76185,2624.8,2624.7,7.66368]
[1752050084082,0.76184,2624.9,2624.8,0.76183]
[1752050084382,2.20023935,2624.9,2624.8,5.03243511]
[1752050084782,2.20023935,2624.9,2624.8,4.27060511]
[1752050085777,3.47804446,2624.9,2624.8,1.9752]
[1752050086084,3.47804446,2624.9,2624.8,0.6239]
[1752050086278,0.76191,2624.6,2624.5,1.0176]
[1752050086485,0.76191,2624.6,2624.5,2.9928]
[1752050087685,0.7619,2624.7,2624.5,2.9928]
[1752050087885,0.7619,2624.7,2624.5,1.9752]
[1752050088084,0.7619,2624.7,2624.6,1.0176]
[1752050088277,0.7619,2624.7,2624.6,1.6415]
[1752050090586,0.7619,2624.7,2624.6,0.6239]
[1752050090778,0.7662,2624.8,2624.4,1.7649]
[1752050090779,0.76194,2624.5,2624.4,1.7649]
[1752050090985,0.76194,2624.5,2624.4,0.6239]
[1752050091286,0.7662,2624.8,2624.4,0.6239]
[1752050091287,0.76192,2624.6,2624.4,1.6415]
[1752050093488,0.76194,2624.5,2624.4,1.6415]
[1752050093689,0.76194,2624.5,2624.4,2.9923]
[1752050095092,0.76193,2624.6,2624.4,2.9923]
[1752050095286,0.76188,2624.7,2624.5,1.77952]
[1752050095481,1.43888156,2624.6,2624.5,2.0959]
[1752050095688,1.43888156,2624.6,2624.5,1.369]
[1752050096187,1.43888156,2624.6,2624.5,2.3866]
[1752050096585,1.43888156,2624.6,2624.5,3.14854]
[1752050096789,1.43888156,2624.6,2624.5,2.3866]
[1752050097192,2.20079156,2624.6,2624.5,2.3866]
[1752050097389,1.43888156,2624.6,2624.5,3.14854]
[1752050097691,1.43888156,2624.6,2624.5,4.42634511]
[1752050099892,3.2078,2625.0,2624.7,0.76186]
[1752050100091,1.44380728,2624.9,2624.8,1.7357]
[1752050100285,1.44380728,2624.9,2624.8,3.01350511]
[1752050100494,1.44380728,2624.9,2624.8,4.39925511]
[1752050100994,1.44380728,2624.9,2624.8,3.63740511]
[1752050101389,1.44380728,2624.9,2624.8,4.39925511]
[1752050102194,2.20562728,2624.9,2624.8,3.63740511]
[1752050102395,2.20562728,2624.9,2624.8,2.3596]
[1752050102795,2.93132728,2624.9,2624.8,2.3596]
[1752050103390,2.93132728,2624.9,2624.8,0.6239]
[1752050104594,2.93132728,2624.9,2624.8,1.6415]
[1752050106196,2.16950728,2624.9,2624.8,1.6415]
[1752050106395,2.93132728,2624.9,2624.8,1.6415]
[1752050106695,2.16950728,2624.9,2624.8,1.6415]
[1752050107096,2.16950728,2624.9,2624.8,2.40335]
[1752050107298,2.93132728,2624.9,2624.8,1.6415]
[1752050108300,2.93132728,2624.9,2624.8,2.9381]
[1752050108798,1.44380728,2624.9,2624.8,2.9381]
[1752050109004,2.20562728,2624.9,2624.8,2.9381]
[1752050109804,2.20562728,2624.9,2624.8,0.6239]
[1752050111696,0.76191,2624.6,2624.5,4.1957]
[1752050112000,0.76191,2624.6,2624.5,4.8666]
[1752050112200,0.76191,2624.6,2624.5,6.171]
[1752050113099,0.76191,2624.6,2624.5,1.9753]
[1752050113301,2.20564073,2624.6,2624.5,0.6709]
[1752050114904,2.20564073,2624.6,2624.5,1.6588]
[1752050117505,2.20564073,2624.6,2624.5,3.0127]
[1752050119803,2.20564073,2624.6,2624.5,2.0248]
[1752050121204,2.20564073,2624.6,2624.5,3.0127]
[1752050122305,2.20564073,2624.6,2624.5,2.0248]
[1752050122706,2.20564073,2624.6,2624.5,0.6709]
[1752050125200,2.20564073,2624.6,2624.4,0.7317]
[1752050125400,1.90497,2624.4,2623.9,5.53640539]
[1752050125598,0.76205,2624.1,2624.0,0.6709]
[1752050125804,0.76205,2624.1,2624.0,1.9363]
[1752050127707,0.76204,2624.2,2624.0,1.9363]
[1752050128107,0.76204,2624.2,2624.1,1.2728]
[1752050128911,0.76204,2624.2,2624.1,2.9316]
[1752050129108,1.44510832,2624.2,2624.1,4.97145511]
[1752050129308,0.76198,2624.4,2624.2,0.76201]
[1752050129514,0.76198,2624.4,2624.3,1.9338]
[1752050129711,1.44467238,2624.4,2624.3,2.69579]
[1752050130113,2.20664238,2624.4,2624.3,2.69579]
[1752050130308,2.20664238,2624.4,2624.3,1.9338]
[1752050130508,2.20664238,2624.4,2624.3,3.5926]
[1752050131110,2.20664238,2624.4,2624.3,4.35459]
[1752050131511,1.44467238,2624.4,2624.3,4.35459]
[1752050132611,2.20664238,2624.4,2624.3,4.35459]
[1752050132811,1.44467238,2624.4,2624.3,4.35459]
[1752050133812,2.20664238,2624.4,2624.3,4.35459]
[1752050135417,2.20664238,2624.4,2624.3,3.5926]
[1752050135915,2.20664238,2624.4,2624.3,4.35459]
[1752050136117,2.20664238,2624.4,2624.3,3.5926]
[1752050137417,2.20664238,2624.4,2624.3,4.35459]
[1752050137817,1.44467238,2624.4,2624.3,4.35459]
[1752050138819,1.44467238,2624.4,2624.3,5.63239511]
[1752050141119,2.20664238,2624.4,2624.3,4.87040511]
[1752050141312,2.20664238,2624.4,2624.3,3.5926]
[1752050141517,2.20664238,2624.4,2624.3,4.35459]
[1752050142123,2.20664238,2624.4,2624.3,3.5926]
[1752050142422,1.44467238,2624.4,2624.3,4.35459]
[1752050143323,2.20664238,2624.4,2624.3,3.5926]
[1752050144425,2.20664238,2624.4,2624.3,4.35459]
[1752050145026,1.44467238,2624.4,2624.3,4.35459]
[1752050146931,1.44467238,2624.4,2624.3,5.63239511]
[1752050149127,3.2078,2624.5,2624.4,0.76197]
[1752050149321,4.65164513,2624.5,2624.4,3.77597]
[1752050149531,5.41358513,2624.5,2624.4,3.77597]
[1752050149729,4.65164513,2624.5,2624.4,3.77597]
[1752050150329,1.44384513,2624.5,2624.4,3.77597]
[1752050151128,2.20578513,2624.5,2624.4,3.77597]
[1752050151722,1.44384513,2624.5,2624.4,3.77597]
[1752050152233,2.20578513,2624.5,2624.4,3.77597]
[1752050152730,1.44384513,2624.5,2624.4,3.77597]
[1752050155540,3.2078,2625.0,2624.9,0.76182]
[1752050155840,4.65164885,2625.0,2624.9,2.39602]
[1752050156232,4.65164885,2625.0,2624.9,3.70772]
[1752050157336,5.41344885,2625.0,2624.9,3.70772]
[1752050157743,4.65164885,2625.0,2624.9,3.70772]
[1752050159442,1.44384885,2625.0,2624.9,3.70772]
[1752050159637,1.44384885,2625.0,2624.9,1.3117]
[1752050159843,2.14244885,2625.0,2624.7,0.9523]
[1752050160041,1.44384885,2624.9,2624.7,1.6342]
[1752050160242,2.20569885,2624.8,2624.7,1.6342]
[1752050162548,1.44384885,2624.8,2624.7,2.39608]
[1752050162744,1.44384885,2624.8,2624.7,4.29968]
[1752050163345,2.20569885,2624.8,2624.7,3.5378]
[1752050163941,2.20569885,2624.8,2624.7,4.29968]
[1752050164144,1.44384885,2624.8,2624.7,4.29968]
[1752050164344,2.20569885,2624.8,2624.7,4.29968]
[1752050164546,2.20569885,2624.8,2624.7,3.5378]
[1752050165248,2.20569885,2624.8,2624.7,4.29968]
[1752050165442,2.20569885,2624.8,2624.7,3.5378]
[1752050167350,1.44384885,2624.8,2624.7,4.29968]
[1752050168651,2.20569885,2624.8,2624.7,4.29968]
[1752050170449,1.44384885,2624.8,2624.7,4.29968]
[1752050171451,2.20569885,2624.8,2624.7,4.29968]
[1752050171753,2.20569885,2624.8,2624.7,3.5378]
[1752050173456,2.20569885,2624.8,2624.7,0.6819]
[1752050173650,0.76191,2624.6,2624.5,1.0371]
[1752050173855,0.76191,2624.6,2624.5,1.6879]
[1752050175158,2.20538757,2624.6,2624.5,2.44984]
[1752050175358,2.20538757,2624.6,2624.5,3.0472]
[1752050176355,2.20538757,2624.6,2624.5,3.80914]
[1752050177559,1.44347757,2624.6,2624.5,3.80914]
[1752050178460,2.20538757,2624.6,2624.5,3.80914]
[1752050178961,2.20538757,2624.6,2624.5,3.0472]
[1752050179763,2.20538757,2624.6,2624.5,3.80914]
[1752050180767,2.20538757,2624.6,2624.5,3.0472]
[1752050180965,2.20538757,2624.6,2624.5,2.0101]
[1752050181163,2.20538757,2624.6,2624.5,0.6508]
[1752050184167,2.20538757,2624.6,2624.5,1.6879]
[1752050184367,2.20538757,2624.6,2624.5,3.0572]
[1752050185366,2.20538757,2624.6,2624.5,3.81915]
[1752050190169,2.20538757,2624.6,2624.5,3.0572]
[1752050190465,2.20538757,2624.6,2624.5,3.81915]
[1752050192568,2.20538757,2624.6,2624.5,3.0572]
[1752050194273,0.76203,2624.2,2624.1,5.00695]
[1752050194479,0.76203,2624.2,2624.1,0.6508]
[1752050197681,0.76209,2624.0,2623.9,1.685]
[1752050197986,0.76212,2623.9,2623.8,1.3654]
[1752050198182,0.76212,2623.9,2623.8,2.0233]
[1752050198581,0.76212,2623.9,2623.8,0.6579]
[1752050198787,0.76224,2623.5,2623.4,6.85820539]
[1752050198984,0.76224,2623.5,2623.4,1.3355]
[1752050199185,0.76224,2623.5,2623.4,1.9934]
[1752050199886,0.76224,2623.5,2623.4,0.6579]
[1752050200386,0.6514,2623.6,2623.4,1.6321]
[1752050200586,0.76224,2623.5,2623.4,0.6579]
[1752050201286,0.76224,2623.5,2623.4,1.6321]
[1752050202889,0.76224,2623.5,2623.4,2.39436]
[1752050203091,0.76224,2623.5,2623.4,1.6321]
[1752050203990,0.76224,2623.5,2623.4,2.39437]
[1752050204491,0.76224,2623.5,2623.4,1.6321]
[1752050204890,0.76224,2623.5,2623.4,2.39437]
[1752050205092,0.76222,2623.6,2623.4,2.39437]
[1752050205289,0.76222,2623.6,2623.5,0.9742]
[1752050205489,0.76222,2623.6,2623.5,1.6321]
[1752050207292,3.97,2623.7,2623.5,1.6321]
[1752050207594,0.76221,2623.6,2623.5,1.6321]
[1752050211590,0.76221,2623.6,2623.5,0.6579]
[1752050213194,1.90554,2623.6,2623.1,1.46223]
[1752050213492,0.76232,2623.2,2623.1,1.3578]
[1752050213693,0.76232,2623.2,2623.1,2.332]
[1752050214296,0.76232,2623.2,2623.1,3.09434]
[1752050214996,0.76232,2623.2,2623.1,2.332]
[1752050215200,0.76232,2623.2,2623.1,3.09435]
[1752050215391,0.76232,2623.2,2623.1,2.332]
[1752050215699,0.76232,2623.2,2623.1,3.09435]
[1752050216500,0.76232,2623.2,2623.1,2.332]
[1752050217701,2.04012511,2623.2,2623.1,0.6579]
[1752050217898,0.76241,2622.9,2622.8,1.6285]
[1752050218196,0.76241,2622.9,2622.8,2.2864]
[1752050218396,0.76241,2622.9,2622.8,1.3122]
[1752050219801,0.76241,2622.9,2622.8,2.2864]
[1752050220399,0.76241,2622.9,2622.8,3.6459]
[1752050223404,0.76241,2622.9,2622.8,4.40834]
[1752050224097,0.76241,2622.9,2622.8,3.6459]
[1752050224402,0.76241,2622.9,2622.8,4.40834]
[1752050231310,0.76241,2622.9,2622.8,3.6459]
[1752050232109,0.76241,2622.9,2622.8,4.40834]
[1752050234513,0.76241,2622.9,2622.8,3.6459]
[1752050236713,0.76241,2622.9,2622.8,4.40834]
[1752050240516,0.76241,2622.9,2622.8,3.6459]
[1752050244416,0.76241,2622.9,2622.8,4.40834]
[1752050245118,0.76241,2622.9,2622.8,3.6459]
[1752050245614,0.76241,2622.9,2622.8,4.40834]
[1752050246110,0.76241,2622.9,2622.8,3.6459]
[1752050246710,2.21130122,2622.9,2622.8,3.6459]
[1752050246918,0.76241,2622.9,2622.8,3.6459]
[1752050247118,2.2112568,2622.9,2622.8,3.6459]
[1752050247918,2.2112568,2622.9,2622.8,4.40834]
[1752050248318,2.2112568,2622.9,2622.8,3.6459]
[1752050248818,2.2112568,2622.9,2622.8,4.40834]
[1752050249220,2.2112568,2622.9,2622.8,3.6459]
[1752050249719,2.2112568,2622.9,2622.8,4.40834]
[1752050249920,2.2112568,2622.9,2622.8,3.6459]
[1752050250419,2.2112568,2622.9,2622.8,4.40834]
[1752050250713,2.2112568,2622.9,2622.8,3.6459]
[1752050256322,2.2112568,2622.9,2622.8,0.6579]
[1752050256718,2.8626568,2622.9,2622.8,0.6579]
[1752050259525,2.8626568,2622.9,2622.8,1.6483]
[1752050260123,2.8626568,2622.9,2622.8,0.6579]
[1752050262328,2.8626568,2622.9,2622.8,1.6483]
[1752050265229,2.2112568,2622.9,2622.8,1.6483]
[1752050265922,2.2112568,2622.9,2622.8,4.39494]
[1752050266122,2.2112568,2622.9,2622.8,3.6325]
[1752050269231,2.2112568,2622.9,2622.8,4.39494]
[1752050269633,2.2112568,2622.9,2622.8,3.6325]
[1752050270035,0.76241,2622.9,2622.8,3.6325]
[1752050270233,2.21371485,2622.9,2622.8,4.39494]
[1752050270434,1.45130485,2622.9,2622.8,4.39494]
[1752050270629,2.21371485,2622.9,2622.8,4.39494]
[1752050273234,1.45130485,2622.9,2622.8,4.39494]
[1752050274133,0.7624,2623.0,2622.9,0.76241]
[1752050274333,1.45023935,2623.2,2623.1,0.76236]
[1752050274635,3.9701,2623.3,2623.2,1.27780511]
[1752050274834,5.42042106,2623.3,2623.2,3.17700511]
[1752050275135,5.42042106,2623.3,2623.2,4.80960511]
[1752050275632,5.42042106,2623.3,2623.2,4.29413]
[1752050275832,5.42042106,2623.3,2623.2,5.57193511]
[1752050276934,2.21262106,2623.3,2623.2,5.57193511]
[1752050280339,2.21262106,2623.3,2623.2,3.5318]
[1752050281641,2.21262106,2623.3,2623.2,4.29413]
[1752050283446,1.45032106,2623.3,2623.2,5.57193511]
[1752050283745,3.2078,2623.6,2623.5,0.76224]
[1752050283947,5.41590302,2623.6,2623.5,2.38534]
[1752050284141,2.20810302,2623.6,2623.5,2.38534]
[1752050284444,1.44589302,2623.6,2623.5,4.31764]
[1752050284645,3.96991,2624.0,2623.9,0.76212]
[1752050284844,3.96991,2624.0,2623.9,3.66302511]
[1752050285049,3.2078,2624.0,2623.9,3.66302511]
[1752050285547,3.96989,2624.0,2623.9,3.66302511]
[1752050286246,3.96989,2624.0,2623.9,2.38522]
[1752050287242,3.96989,2624.0,2623.9,2.3282]
[1752050287646,3.96989,2624.0,2623.9,3.6439]
[1752050290448,3.96989,2624.0,2623.9,0.6327]
[1752050291352,3.96989,2624.0,2623.9,1.5989]
[1752050291553,3.96989,2624.0,2623.9,0.6327]
[1752050293853,0.76209,2624.0,2623.9,1.5989]
[1752050296752,0.76209,2624.0,2623.9,2.36102]
[1752050296956,0.76209,2624.0,2623.9,1.5989]
[1752050303466,0.76209,2624.0,2623.9,2.36102]
[1752050304064,0.76209,2624.0,2623.9,1.5989]
[1752050304258,0.76209,2624.0,2623.9,2.2728]
[1752050304463,0.76209,2624.0,2623.9,3.6234]
[1752050308170,2.19968569,2624.0,2623.9,3.6234]
[1752050312067,2.19968569,2624.0,2623.9,4.38552]
[1752050312673,2.19968569,2624.0,2623.9,3.6234]
[1752050312976,2.19968569,2624.0,2623.9,4.38552]
[1752050313271,2.19968569,2624.0,2623.9,5.66332511]
[1752050319978,2.19968569,2624.0,2623.9,4.90120511]
[1752050320377,2.19968569,2624.0,2623.9,5.66332511]
[1752050320777,2.19968569,2624.0,2623.9,3.6234]
[1752050327783,2.19968569,2624.0,2623.9,4.38552]
[1752050328183,1.43759569,2624.0,2623.9,4.38552]
[1752050328382,0.76208,2624.1,2624.0,0.76209]
[1752050328581,2.20322926,2624.1,2624.0,3.34759511]
[1752050328882,2.20322926,2624.1,2624.0,4.26010511]
[1752050329087,2.20322926,2624.1,2624.0,5.02219511]
[1752050332891,2.20322926,2624.1,2624.0,4.26010511]
[1752050333892,2.20322926,2624.1,2624.0,2.9823]
[1752050339206,2.20322926,2624.1,2624.0,3.74439]
[1752050340207,2.20322926,2624.1,2624.0,2.9823]
[1752050342905,2.20322926,2624.1,2624.0,4.00503716]
[1752050345206,2.20322926,2624.1,2624.0,4.76712716]
[1752050345704,2.20322926,2624.1,2624.0,4.00503716]
[1752050347512,2.20322926,2624.1,2624.0,4.76712716]
[1752050348108,2.20322926,2624.1,2624.0,4.00503716]
[1752050349206,2.20322926,2624.1,2624.0,2.9823]
[1752050349514,2.20322926,2624.1,2624.0,1.6746]
[1752050350909,2.20322926,2624.1,2624.0,0.6434]
[1752050351111,2.85862926,2624.1,2624.0,0.6434]
[1752050353113,0.76212,2623.9,2623.8,1.2456]
[1752050353412,0.76212,2623.9,2623.8,0.6231]
[1752050353710,2.20326926,2623.9,2623.8,0.6231]
[1752050356612,5.41106926,2623.9,2623.8,0.6231]
[1752050357513,0.76215,2623.8,2623.7,1.0153]
[1752050357713,2.89289926,2623.8,2623.7,1.6384]
[1752050360716,2.89289926,2623.8,2623.7,0.6231]
[1752050362419,2.88921269,2623.8,2623.7,0.6231]
[1752050363714,3.14979985,2623.8,2623.5,1.0153]
[1752050363916,1.78494716,2623.6,2623.5,1.6384]
[1752050365018,1.78494716,2623.6,2623.5,0.6231]
[1752050365722,3.22209587,2623.6,2623.5,0.6231]
[1752050366922,2.19935871,2623.6,2623.5,1.6384]
[1752050370523,2.19935871,2623.6,2623.5,2.9817]
[1752050371525,0.76224,2623.5,2623.4,0.6977]
[1752050371726,2.19938871,2623.5,2623.4,1.3208]
[1752050372024,2.19938871,2623.5,2623.4,2.3361]
[1752050372223,2.19938871,2623.5,2623.4,3.6811]
[1752050372622,2.19938871,2623.5,2623.4,2.6658]
[1752050375128,2.19938871,2623.5,2623.4,3.6811]
[1752050379632,2.19845416,2623.5,2623.4,3.6811]
[1752050384733,2.19845416,2623.5,2623.4,1.9681]
[1752050385729,2.19845416,2623.5,2623.4,2.9502]
[1752050387027,0.7623,2623.3,2623.2,0.6893]
[1752050387231,2.0413967,2623.3,2623.2,1.349]
[1752050387433,3.47761086,2623.3,2623.2,1.349]
[1752050388032,2.19851416,2623.3,2623.2,2.3311]
[1752050389335,2.19851416,2623.3,2623.2,3.6464]
[1752050389835,1.43621416,2623.3,2623.2,4.40873]
[1752050390535,2.19851416,2623.3,2623.2,4.40873]
[1752050390936,1.43621416,2623.3,2623.2,4.40873]
[1752050391135,0.76225,2623.5,2623.2,3.6464]
[1752050391437,1.2790967,2624.1,2623.7,0.76217]
[1752050391438,3.2078,2624.1,2623.7,0.76217]
[1752050391635,0.76215,2623.8,2623.7,0.76217]
[1752050392237,0.76218,2623.7,2623.6,0.76219]
[1752050392637,0.76217,2623.8,2623.6,0.76219]
[1752050393038,0.76217,2623.8,2623.7,0.76218]
[1752050393235,0.76214,2623.9,2623.6,3.2078]
[1752050393435,0.76214,2623.9,2623.7,0.76218]
[1752050393635,0.76215,2623.8,2623.7,0.76218]
[1752050394036,0.76218,2623.7,2623.6,3.96999]
[1752050394540,0.76217,2623.8,2623.7,0.76218]
[1752050394832,0.76217,2623.8,2623.7,1.74428]
[1752050395336,0.76217,2623.8,2623.7,0.9821]
[1752050396239,0.76217,2623.8,2623.7,1.6418]
[1752050397841,0.76217,2623.8,2623.7,2.40398]
[1752050398740,0.76217,2623.8,2623.7,1.6418]
[1752050403640,0.76213,2623.9,2623.7,3.6830567]
[1752050403841,0.7621,2624.0,2623.8,1.74424]
[1752050404039,0.7621,2624.0,2623.9,1.9387967]
[1752050404238,0.7621,2624.0,2623.9,3.5629967]
[1752050404440,2.18137136,2624.0,2623.9,4.3251167]
[1752050405840,2.18137136,2624.0,2623.9,3.5629967]
[1752050406643,0.7621,2624.0,2623.9,3.5629967]
[1752050407343,0.7621,2624.0,2623.9,2.2839]
[1752050412353,2.18088107,2624.0,2623.9,2.2839]
[1752050418856,3.45997777,2624.0,2623.9,0.6597]
[1752050419358,0.76224,2623.5,2623.4,4.77194581]
[1752050419557,0.76224,2623.5,2623.4,5.47274581]
[1752050419757,0.76224,2623.5,2623.4,6.12184581]
[1752050419958,0.76224,2623.5,2623.4,7.09154581]
[1752050420158,0.76224,2623.5,2623.4,3.6665]
[1752050420859,2.1830025,2623.5,2623.4,3.6665]
[1752050422056,0.76224,2623.5,2623.4,3.6665]
[1752050423063,0.7623,2623.3,2623.2,3.42504581]
[1752050423259,0.76233,2623.2,2623.1,3.42504581]
[1752050423453,0.76233,2623.2,2623.1,5.39904581]
[1752050423856,0.76233,2623.2,2623.1,6.36874581]
[1752050424360,0.76233,2623.2,2623.1,2.9437]
[1752050428269,0.76233,2623.2,2623.1,1.6188]
[1752050428671,1.46743,2623.2,2623.1,0.6491]
[1752050430172,1.46743,2623.2,2623.1,1.6188]
[1752050430173,0.76233,2623.2,2623.1,1.6188]
[1752050430372,0.76233,2623.2,2623.1,2.8995]
[1752050439775,0.76233,2623.2,2623.1,3.66186]
[1752050439980,5.11335,2623.6,2623.1,3.66186]
[1752050440280,0.7623,2623.3,2623.2,2.2337]
[1752050440479,0.7623,2623.3,2623.2,1.9211]
[1752050440679,0.7623,2623.3,2623.2,2.8981]
[1752050441380,0.7623,2623.3,2623.2,4.1771967]
[1752050447986,0.7623,2623.3,2623.2,4.9395267]
[1752050448886,0.7623,2623.3,2623.2,4.1771967]
[1752050450383,0.7623,2623.3,2623.2,4.9395267]
[1752050453794,0.7623,2623.3,2623.2,4.1771967]
[1752050454194,0.7623,2623.3,2623.2,4.9395267]
[1752050454587,0.7623,2623.3,2623.2,4.1771967]
[1752050456592,0.7623,2623.3,2623.2,2.8981]
[1752050460996,3.2078,2623.3,2623.0,3.42504581]
[1752050461297,0.76241,2622.9,2622.8,3.42504581]
[1752050461601,3.97021,2622.9,2622.8,3.42504581]
[1752050462296,4.65471,2622.9,2622.8,4.08944581]
[1752050463799,1.44691,2622.9,2622.8,4.08944581]
[1752050463999,4.65471,2622.9,2622.8,4.08944581]
[1752050464601,4.65471,2622.9,2622.8,0.6644]
[1752050464900,0.76244,2622.8,2622.7,3.42504581]
[1752050465099,0.76244,2622.8,2622.7,4.08944581]
[1752050466403,0.76244,2622.8,2622.7,5.06644581]
[1752050468294,0.76244,2622.8,2622.7,1.6414]
[1752050468997,0.76244,2622.8,2622.7,0.6644]
[1752050469198,0.7625,2622.6,2622.5,2.3495]
[1752050469404,0.7625,2622.6,2622.5,3.0072]
[1752050472105,0.7625,2622.6,2622.5,4.2862967]
[1752050485517,0.7625,2622.6,2622.5,3.0072]
[1752050497222,0.7625,2622.6,2622.5,6.43527647]
[1752050498326,2.19014206,2622.6,2622.5,6.43527647]
[1752050499728,2.19019078,2622.6,2622.5,6.43847983]
[1752050502632,0.7625,2622.6,2622.5,6.43847983]
[1752050503124,2.19030536,2622.6,2622.5,6.43847983]
[1752050504728,0.7625,2622.6,2622.5,6.43847983]
[1752050504930,0.7625,2622.6,2622.5,7.46281167]
[1752050505128,2.19050255,2622.6,2622.5,7.46281167]
[1752050507233,0.7625,2622.6,2622.5,7.46281167]
[1752050507933,0.7625,2622.6,2622.5,6.43900703]